[Event "Netanya Open 2019"]
[Site "Netanya"]
[Date "2019.06.23"]
[Round "1.29"]
[White "Veinberg, Nimrod"]
[Black "Leib, Daniel"]
[Result "0-1"]
[WhiteElo "2401"]
[BlackElo "1897"]
[PlyCount "96"]
[EventDate "2019.06.23"]
[EventType "swiss"]
[EventRounds "9"]
[EventCountry "ISR"]
[TimeControl "40/5400+30:1800+30"]

1. d4 d5 2. Nf3 Nf6 3. Bf4 e6 4. e3 c5 5. Nbd2 Nc6 6. c3 Be7 7. Ne5 O-O 8. Bd3 Nxe5 9. Bxe5 b6 10. h4 Bb7 11. Qb1 h6 12. Bxf6 Bxf6 13. f4 Bxh4+ 14. g3 Bxg3+ 15. Ke2 e5 16. fxe5 f5 17. Nf3 f4 18. Qg1 Qe8 19. Qg2 Qe6 20. Raf1 a5 21. Rfg1 Rf7 22. exf4 Bxf4 23. Bg6 Ba6+ 24. Kd1 Rc7 25. Rh5 Rf8 26. Bb1 Be3 27. Rgh1 Rcf7 28. R1h3 cxd4 29. Rg3 dxc3 30. Qc2 Rc8 31. Qh7+ Kf8 32. Rg6 cxb2 33. Qh8+ Ke7 34. Rxe6+ Kxe6 35. Nd4+ Bxd4 36. Rxh6+ Ke7 37. Re6+ Kxe6 38. Qh3+ Kxe5 39. Qg3+ Ke6 40. Qg4+ Kd6 41. Qxd4 Rf1+ 42. Kd2 Rxb1 43. Qf4+ Kc6 44. Qf5 Rc1 45. Qe6+ Kb7 46. Qd7+ R8c7 47. Qxd5+ Ka7 48. a4 b1=Q 0-1

[Event "Netanya Open 2019"]
[Site "Netanya"]
[Date "2019.06.23"]
[Round "1.30"]
[White "Volkov, Yuri"]
[Black "Birnboim, Nathan"]
[Result "0-1"]
[WhiteElo "1886"]
[BlackElo "2375"]
[PlyCount "142"]
[EventDate "2019.06.23"]
[EventType "swiss"]
[EventRounds "9"]
[EventCountry "ISR"]
[TimeControl "40/5400+30:1800+30"]

1. d4 Nf6 2. Nf3 e6 3. e3 d5 4. Bd3 Be7 5. Nbd2 O-O 6. O-O b6 7. Re1 Ba6 8. Bxa6 Nxa6 9. c3 c5 10. Qe2 Qc8 11. e4 cxd4 12. Nxd4 dxe4 13. Nxe4 Nxe4 14. Qxe4 Nc5 15. Qf3 Bf6 16. Nb3 Na4 17. Qe2 a6 18. Be3 b5 19. Bd4 Bxd4 20. Nxd4 Rd8 21. Rad1 Ra7 22. Nc6 Rxd1 23. Rxd1 Rd7 24. Rxd7 Qxd7 25. Ne5 Qd5 26. c4 bxc4 27. Nxc4 g6 28. h3 h5 29. Qc2 Nc5 30. Ne3 Qe5 31. b4 Ne4 32. Qc8+ Kg7 33. Qxa6 Qb2 34. Qf1 Qxa2 35. Qe1 Qb2 36. Nc4 Qd4 37. Ne3 Nc3 38. Kh1 Qxb4 39. Nd1 Nd5 40. Qxb4 Nxb4 41. Ne3 Kf6 42. Kg1 Ke5 43. Kf1 Kd4 44. Ke2 Nd5 45. Nf1 e5 46. Nd2 Nc3+ 47. Kf1 e4 48. Nb3+ Kd3 49. Nc5+ Kd4 50. Nd7 Na4 51. Ke2 Nc3+ 52. Kd2 Nd5 53. Ke2 g5 54. g3 f5 55. Kd2 f4 56. Ke2 f3+ 57. Kf1 h4 58. gxh4 gxh4 59. Nf8 Nf4 60. Ke1 Ke5 61. Kf1 Kf5 62. Nd7 Nxh3 63. Nb6 Nf4 64. Nc4 Ne2 65. Ne3+ Kg5 66. Ke1 h3 67. Nf1 Kf4 68. Nh2 Nd4 69. Kf1 Nf5 70. Kg1 Nh6 71. Kf1 Ng4 0-1

[Event "Netanya Open 2019"]
[Site "Netanya"]
[Date "2019.06.23"]
[Round "1.31"]
[White "Bronstein, Or"]
[Black "Noy, Eyal"]
[Result "1-0"]
[WhiteElo "2378"]
[BlackElo "1858"]
[PlyCount "91"]
[EventDate "2019.06.23"]
[EventType "swiss"]
[EventRounds "9"]
[EventCountry "ISR"]
[TimeControl "40/5400+30:1800+30"]

1. d4 Nf6 2. c4 g6 3. Nc3 d5 4. cxd5 Nxd5 5. e4 Nxc3 6. bxc3 Bg7 7. Nf3 c5 8. h3 Nc6 9. Be3 cxd4 10. cxd4 Qa5+ 11. Bd2 Qa3 12. d5 Nb4 13. Bb5+ Bd7 14. Bxd7+ Kxd7 15. O-O Bxa1 16. Qxa1 f6 17. Rb1 a5 18. Qd4 Rhc8 19. Qb6 Qxa2 20. Re1 Qc4 21. Qe6+ Kd8 22. Qg8+ Kd7 23. Qe6+ Kd8 24. Qg8+ Kd7 25. Qxh7 Nd3 26. Re3 Nf4 27. Qh4 Ne2+ 28. Kh2 Ra6 29. Qg4+ Kd8 30. Nh4 Nd4 31. Rc3 Qxc3 32. Bxc3 Rxc3 33. e5 fxe5 34. Nxg6 Rxg6 35. Qxg6 a4 36. Qb6+ Kc8 37. Qb4 Rc2 38. Qxa4 b5 39. Qa6+ Kd7 40. h4 Rc5 41. Qb7+ Rc7 42. Qb6 Kc8 43. h5 Rb7 44. Qa6 b4 45. h6 e6 46. h7 1-0

[Event "Netanya Open 2019"]
[Site "Netanya"]
[Date "2019.06.23"]
[Round "1.32"]
[White "Sheinkman, Lidan"]
[Black "Krayz, Alexander"]
[Result "1/2-1/2"]
[WhiteElo "1863"]
[BlackElo "2374"]
[PlyCount "25"]
[EventDate "2019.06.23"]
[EventType "swiss"]
[EventRounds "9"]
[EventCountry "ISR"]
[TimeControl "40/5400+30:1800+30"]

1. d4 Nf6 2. c4 e6 3. Nf3 b6 4. g3 Ba6 5. b3 Bb4+ 6. Bd2 Be7 7. Bg2 c6 8. O-O d5 9. cxd5 cxd5 10. Ne5 Nfd7 11. Nxd7 Qxd7 12. Bc3 Nc6 13. Bb2 {h%clk 00:13:56]} 1/2-1/2

[Event "Netanya Open 2019"]
[Site "Netanya"]
[Date "2019.06.23"]
[Round "1.33"]
[White "Gorshtein, Ido"]
[Black "Yusupoff, Yoav"]
[Result "1-0"]
[WhiteElo "2367"]
[BlackElo "1874"]
[PlyCount "59"]
[EventDate "2019.06.23"]
[EventType "swiss"]
[EventRounds "9"]
[EventCountry "ISR"]
[TimeControl "40/5400+30:1800+30"]

1. e4 c5 2. Ne2 Nf6 3. Nbc3 e5 4. g3 d5 5. exd5 Nxd5 6. Bg2 Be6 7. O-O Nc6 8. d3 Be7 9. f4 Qd7 10. fxe5 h5 11. Nf4 Nxf4 12. gxf4 Nd4 13. Be3 Nf5 14. Qd2 Rh6 15. Be4 h4 16. Rf2 O-O-O 17. a3 Rdh8 18. b4 b6 19. Rb1 Ng3 20. bxc5 Nxe4 21. dxe4 Rg6+ 22. Kh1 Qxd2 23. Rxd2 Bg4 24. Rf2 Bxc5 25. Bxc5 bxc5 26. Rg1 h3 27. Nd5 Kd7 28. f5 Rg5 29. Rf4 Rh4 30. Rg3 1-0

[Event "Netanya Open 2019"]
[Site "Netanya"]
[Date "2019.06.23"]
[Round "1.34"]
[White "Shetah, Roi"]
[Black "Shvayger, Yuliya"]
[Result "0-1"]
[WhiteElo "1836"]
[BlackElo "2373"]
[PlyCount "66"]
[EventDate "2019.06.23"]
[EventType "swiss"]
[EventRounds "9"]
[EventCountry "ISR"]
[TimeControl "40/5400+30:1800+30"]

1. e4 c5 2. Nf3 Nc6 3. d4 cxd4 4. Nxd4 Qb6 5. Nb3 Nf6 6. Nc3 e6 7. Be3 Qc7 8. Be2 Bb4 9. O-O O-O 10. Nb5 Qb8 11. c3 Be7 12. Bg5 Nxe4 13. Bxe7 Nxe7 14. f3 Nf6 15. Nd6 Ned5 16. Nxc8 Ne3 17. Qd3 Nxf1 18. Nd6 Ne3 19. c4 Ned5 20. cxd5 Qxd6 21. dxe6 Qb6+ 22. Qd4 Qxd4+ 23. Nxd4 dxe6 24. Kf2 Rfd8 25. Nb3 Rac8 26. Rd1 Rxd1 27. Bxd1 Kf8 28. Ke3 Nd5+ 29. Ke4 Ke7 30. g3 f5+ 31. Ke5 Rc4 32. Na5 Rb4 33. Nb3 Nf6 0-1

[Event "Netanya Open 2019"]
[Site "Netanya"]
[Date "2019.06.23"]
[Round "1.35"]
[White "Emanuel, Yahav"]
[Black "Smoliar, Klim"]
[Result "1-0"]
[WhiteElo "2359"]
[BlackElo "1871"]
[PlyCount "63"]
[EventDate "2019.06.23"]
[EventType "swiss"]
[EventRounds "9"]
[EventCountry "ISR"]
[TimeControl "40/5400+30:1800+30"]

1. e4 c5 2. Nf3 d6 3. d4 cxd4 4. Nxd4 Nf6 5. Nc3 Bd7 6. Be2 e5 7. Nb3 Bc6 8. Bf3 a5 9. Bg5 a4 10. Nd2 Nbd7 11. O-O b5 12. b4 Be7 13. Qe2 Qb6 14. Rfd1 O-O 15. Nf1 Qb7 16. Ne3 h6 17. Nf5 Nb6 18. Bxf6 Bxf6 19. Nxd6 Qa6 20. a3 Rfd8 21. Ndxb5 Qb7 22. Nd6 Qc7 23. Nf5 Bd7 24. Nb5 Bxb5 25. Qxb5 Rab8 26. Ne3 Rd4 27. Qe2 Qc3 28. Ra2 g6 29. g3 Nc4 30. Rxd4 Nxe3 31. Rd3 Qc4 32. Rb2 1-0

[Event "Netanya Open 2019"]
[Site "Netanya"]
[Date "2019.06.23"]
[Round "1.36"]
[White "Zoabi, Jihad"]
[Black "Parkhov, Yair"]
[Result "0-1"]
[WhiteElo "1788"]
[BlackElo "2351"]
[PlyCount "86"]
[EventDate "2019.06.23"]
[EventType "swiss"]
[EventRounds "9"]
[EventCountry "ISR"]
[TimeControl "40/5400+30:1800+30"]

1. e4 c5 2. Nf3 d6 3. Bb5+ Nd7 4. c3 Ngf6 5. Qe2 a6 6. Ba4 b5 7. Bc2 e5 8. O-O Be7 9. d4 O-O 10. dxe5 Nxe5 11. Nxe5 dxe5 12. Rd1 Qc7 13. Bg5 Be6 14. Nd2 Ng4 15. Bxe7 Qxe7 16. Nf3 f6 17. Rd2 Nh6 18. Rad1 Nf7 19. h3 Rfd8 20. Nh2 Rxd2 21. Rxd2 Rd8 22. a4 Rxd2 23. Qxd2 Qd6 24. Qe2 c4 25. Qe3 b4 26. cxb4 Qxb4 27. Qc3 Qxc3 28. bxc3 Kf8 29. Nf1 Ke7 30. Ne3 Kd6 31. Kf1 Kc5 32. Ke2 Nd6 33. Nf5 Nxf5 34. exf5 Bd7 35. g4 Kb6 36. h4 h6 37. f4 exf4 38. Kf3 Ka5 39. Kxf4 Bxa4 40. Be4 Kb6 41. g5 hxg5+ 42. hxg5 Kc5 43. Kg4 Bd1+ 0-1

[Event "Netanya Open 2019"]
[Site "Netanya"]
[Date "2019.06.23"]
[Round "1.37"]
[White "Globus, Or"]
[Black "Regenbogen, Yoseph"]
[Result "1-0"]
[WhiteElo "2352"]
[BlackElo "1806"]
[PlyCount "79"]
[EventDate "2019.06.23"]
[EventType "swiss"]
[EventRounds "9"]
[EventCountry "ISR"]
[TimeControl "40/5400+30:1800+30"]

1. d4 e6 2. c4 d5 3. Nf3 Nf6 4. g3 Nbd7 5. Bg2 Bb4+ 6. Bd2 Bxd2+ 7. Nbxd2 c6 8. O-O O-O 9. Qc2 Re8 10. e4 dxe4 11. Nxe4 Nxe4 12. Qxe4 Nf6 13. Qe3 Bd7 14. Rad1 Qa5 15. Ne5 Rad8 16. a3 Qc7 17. Rfe1 Re7 18. g4 Ne8 19. Be4 Nd6 20. Bd3 f6 21. Nf3 Be8 22. c5 Nc8 23. g5 f5 24. Bc4 Bf7 25. Ne5 Bh5 26. Rd3 Rde8 27. Qf4 b6 28. Qxf5 bxc5 29. dxc5 Qa5 30. b4 Qc7 31. Qe4 Bg6 32. Nxg6 hxg6 33. Qg4 Kf8 34. Rf3+ Rf7 35. Bxe6 Qe7 36. Rxf7+ Qxf7 37. Bxf7 Rxe1+ 38. Kg2 Kxf7 39. Qxc8 Re7 40. Qxc6 1-0

[Event "Netanya Open 2019"]
[Site "Netanya"]
[Date "2019.06.23"]
[Round "1.38"]
[White "Tsirilman, Guy"]
[Black "Sivan, Yaacov"]
[Result "0-1"]
[WhiteElo "1798"]
[BlackElo "2319"]
[PlyCount "70"]
[EventDate "2019.06.23"]
[EventType "swiss"]
[EventRounds "9"]
[EventCountry "ISR"]
[TimeControl "40/5400+30:1800+30"]

1. e4 c5 2. Nf3 d6 3. d4 cxd4 4. Nxd4 Nf6 5. Nc3 g6 6. Be3 Bg7 7. f3 O-O 8. Qd2 Nc6 9. O-O-O Nxd4 10. Bxd4 Be6 11. Kb1 Qc7 12. h4 h5 13. g4 Rfc8 14. g5 Nd7 15. Bxg7 Kxg7 16. f4 Qa5 17. Be2 Rc5 18. Qd4+ Kg8 19. Nd5 Bxd5 20. exd5 Rac8 21. Qe4 Rxc2 22. Qxc2 Rxc2 23. Kxc2 Qxa2 24. Rd4 Nc5 25. Rh3 Qa1 26. Bd1 Qa6 27. Rf3 Qb5 28. Kb1 a5 29. f5 gxf5 30. Rxf5 Nd3 31. b3 a4 32. Rxa4 Nb4 33. Rf3 Qxd5 34. Kc1 Nd3+ 35. Kb1 Ne1 0-1

[Event "Netanya Open 2019"]
[Site "Netanya"]
[Date "2019.06.23"]
[Round "1.39"]
[White "Goikhman, Valentin"]
[Black "Zilbershtein, Victor"]
[Result "1-0"]
[WhiteElo "2320"]
[BlackElo "1756"]
[PlyCount "71"]
[EventDate "2019.06.23"]
[EventType "swiss"]
[EventRounds "9"]
[EventCountry "ISR"]
[TimeControl "40/5400+30:1800+30"]

1. e4 g6 2. d4 Bg7 3. Nf3 d6 4. Bc4 c6 5. Nc3 e6 6. O-O Nf6 7. e5 dxe5 8. Nxe5 O-O 9. Bb3 Nd5 10. Ne4 Qh4 11. Re1 h6 12. c4 Nc7 13. Qf3 Nd7 14. Bf4 Nxe5 15. Bxe5 Ne8 16. Rad1 f5 17. Nc5 Qe7 18. Bxg7 Nxg7 19. Nd3 Qf6 20. Re5 Rd8 21. Qe3 g5 22. f4 c5 23. Nxc5 b6 24. Nd3 a5 25. c5 b5 26. c6 Rd6 27. a4 b4 28. Nc5 Rxc6 29. Qf3 Raa6 30. Nxa6 Rxa6 31. d5 gxf4 32. Qxf4 Nh5 33. Qc4 Bb7 34. dxe6 Qxe5 35. e7+ Bd5 36. Qxd5+ 1-0

[Event "Netanya Open 2019"]
[Site "Netanya"]
[Date "2019.06.23"]
[Round "1.40"]
[White "Fudim, Ariel"]
[Black "Rozen, Eytan"]
[Result "0-1"]
[WhiteElo "1768"]
[BlackElo "2317"]
[PlyCount "90"]
[EventDate "2019.06.23"]
[EventType "swiss"]
[EventRounds "9"]
[EventCountry "ISR"]
[TimeControl "40/5400+30:1800+30"]

1. d4 f5 2. c4 e6 3. g3 Nf6 4. Bg2 d5 5. Nf3 c6 6. O-O Bd6 7. b3 O-O 8. Ba3 b6 9. Bxd6 Qxd6 10. Nbd2 Nbd7 11. Rc1 Bb7 12. Qc2 Ne4 13. Ne1 Rac8 14. f3 Nxd2 15. Qxd2 Rfd8 16. e3 dxc4 17. bxc4 c5 18. f4 Bxg2 19. Nxg2 Nf6 20. Rfd1 Qc6 21. Qe2 Rd6 22. Ne1 Ne4 23. Nf3 Rcd8 24. Ne5 Qa4 25. Qb2 h6 26. Rd3 a5 27. Rcd1 cxd4 28. exd4 Rxd4 29. Rxd4 Qxd1+ 30. Rxd1 Rxd1+ 31. Kg2 Rd2+ 32. Qxd2 Nxd2 33. Kf2 Ne4+ 34. Ke3 Nc5 35. Kd4 g5 36. fxg5 hxg5 37. Nf3 g4 38. Ng5 Kf8 39. h3 gxh3 40. Nxh3 Ke7 41. Nf4 Kd6 42. Ng6 a4 43. Ne5 Nb3+ 44. axb3 a3 45. b4 a2 0-1

[Event "Netanya Open 2019"]
[Site "Netanya"]
[Date "2019.06.23"]
[Round "1.41"]
[White "Gorodetzky, Matan"]
[Black "Lifshits, Raz"]
[Result "1-0"]
[WhiteElo "2316"]
[BlackElo "1749"]
[PlyCount "107"]
[EventDate "2019.06.23"]
[EventType "swiss"]
[EventRounds "9"]
[EventCountry "ISR"]
[TimeControl "40/5400+30:1800+30"]

1. e4 d6 2. d4 Nf6 3. Nc3 Nbd7 4. Nf3 e5 5. Bc4 Be7 6. O-O O-O 7. Re1 c6 8. a4 exd4 9. Nxd4 Ne5 10. Ba2 c5 11. Nf5 Bxf5 12. exf5 Qd7 13. f4 Nc6 14. g4 Nb4 15. Bb3 c4 16. Bxc4 d5 17. Bb5 Bc5+ 18. Kg2 Qc8 19. Na2 a6 20. Be2 Nxa2 21. Rxa2 Rd8 22. Bd3 Qc6 23. Qf3 Re8 24. Rd1 d4 25. Qxc6 bxc6 26. Kf3 Re7 27. Bd2 Nd5 28. Raa1 Rae8 29. Re1 Ne3 30. Re2 Nd5 31. Rxe7 Rxe7 32. Bxa6 Nb4 33. Bd3 Kf8 34. Be4 Rc7 35. Rd1 Nd5 36. a5 Ne3 37. Rb1 Nc4 38. Be1 Ba7 39. Bd3 Nd6 40. b4 Nb5 41. Bd2 Ke8 42. f6 g6 43. Re1+ Kd8 44. f5 Nd6 45. fxg6 hxg6 46. h4 Ne8 47. h5 gxh5 48. gxh5 Rd7 49. h6 Rd5 50. Rh1 Nxf6 51. h7 Nxh7 52. Rxh7 Rd7 53. Bg5+ Kc7 54. Bf5 1-0

[Event "Netanya Open 2019"]
[Site "Netanya"]
[Date "2019.06.23"]
[Round "1.42"]
[White "Zaromb, Charles Irving"]
[Black "Aharon, Ofir"]
[Result "0-1"]
[WhiteElo "1738"]
[BlackElo "2302"]
[PlyCount "80"]
[EventDate "2019.06.23"]
[EventType "swiss"]
[EventRounds "9"]
[EventCountry "ISR"]
[TimeControl "40/5400+30:1800+30"]

1. e4 c5 2. Nf3 d6 3. d4 cxd4 4. Nxd4 Nf6 5. Nc3 a6 6. Bc4 e6 7. Bb3 Nbd7 8. f4 Nc5 9. Qf3 Qc7 10. Be3 b5 11. f5 b4 12. Na4 e5 13. Ne2 Bb7 14. Nxc5 dxc5 15. Ba4+ Bc6 16. Bxc6+ Qxc6 17. Ng3 c4 18. O-O h5 19. Rfe1 Bd6 20. Bf2 O-O-O 21. Nf1 Ng4 22. Ne3 Nxf2 23. Kxf2 Bc5 24. Rad1 g5 25. Kf1 g4 26. Qe2 Rxd1 27. Nxd1 Ba7 28. Ne3 c3 29. bxc3 bxc3 30. Nd5 Kb7 31. Qd3 Rd8 32. Rb1+ Ka8 33. Ke2 Qc5 34. Rf1 Rb8 35. Qxa6 Rb4 36. Qd3 Rd4 37. Qe3 Rxd5 38. Qxc5 Rd2+ 39. Ke1 Bxc5 40. f6 Rxc2 0-1

[Event "Netanya Open 2019"]
[Site "Netanya"]
[Date "2019.06.23"]
[Round "1.43"]
[White "Friedland, Moshe"]
[Black "Reches, Omer"]
[Result "1/2-1/2"]
[WhiteElo "2315"]
[BlackElo "1720"]
[PlyCount "66"]
[EventDate "2019.06.23"]
[EventType "swiss"]
[EventRounds "9"]
[EventCountry "ISR"]
[TimeControl "40/5400+30:1800+30"]

1. e4 c5 2. Nf3 e6 3. d4 cxd4 4. Nxd4 Nc6 5. Nc3 Qc7 6. Qd3 a6 7. Nxc6 bxc6 8. Qg3 Qxg3 9. hxg3 d5 10. Na4 a5 11. exd5 exd5 12. Nb6 Rb8 13. Nxc8 Rxc8 14. Bf4 Kd7 15. O-O-O Bd6 16. c4 Nf6 17. Bd3 Bxf4+ 18. gxf4 Kd6 19. Rd2 Rhe8 20. Kb1 h6 21. f3 Re3 22. Rhd1 Rce8 23. cxd5 cxd5 24. Be4 Nxe4 25. Rxd5+ Ke7 26. fxe4 Rxe4 27. Rxa5 Rxf4 28. Re1+ Kf8 29. Rxe8+ Kxe8 30. a4 Kd7 31. Ka2 Rd4 32. Ra7+ Kc6 33. Rxf7 Rxa4+ 1/2-1/2

[Event "Netanya Open 2019"]
[Site "Netanya"]
[Date "2019.06.23"]
[Round "1.44"]
[White "Ribstein, Orel"]
[Black "Poleg, Dan"]
[Result "0-1"]
[WhiteElo "1697"]
[BlackElo "2268"]
[PlyCount "78"]
[EventDate "2019.06.23"]
[EventType "swiss"]
[EventRounds "9"]
[EventCountry "ISR"]
[TimeControl "40/5400+30:1800+30"]

1. d4 Nf6 2. c4 e6 3. g3 d5 4. Nf3 dxc4 5. Bg2 Nbd7 6. O-O a6 7. a4 Rb8 8. Qc2 b5 9. Ne5 Nxe5 10. dxe5 Nd7 11. axb5 axb5 12. Bc6 Bb4 13. Rd1 O-O 14. Be3 Qe7 15. Ba7 Nxe5 16. Bg2 Rb7 17. Bd4 Ng4 18. Bxb7 Bxb7 19. Ra7 Rb8 20. e3 Bd6 21. h3 Nf6 22. Bxf6 Qxf6 23. Nc3 Qf3 24. e4 Bc5 25. Rxb7 Qxg3+ 26. Kf1 Qxh3+ 27. Kg1 Rxb7 28. Rd8+ Bf8 29. Qd2 g6 30. Qg5 c6 31. e5 h6 32. Qf4 Ra7 33. Rd1 Qf5 34. Qe3 Ra8 35. f4 Be7 36. Kh2 b4 37. Ne4 Qh5+ 38. Qh3 Qxd1 39. Qxh6 Qh5+ 0-1

[Event "Netanya Open 2019"]
[Site "Netanya"]
[Date "2019.06.23"]
[Round "1.45"]
[White "Tzidkiya, Yeshaayahu"]
[Black "Sobel, Alon"]
[Result "1-0"]
[ECO "B81"]
[WhiteElo "2247"]
[BlackElo "1704"]
[PlyCount "107"]
[EventDate "2019.06.23"]
[EventType "swiss"]
[EventRounds "9"]
[EventCountry "ISR"]
[TimeControl "40/5400+30:1800+30"]

{[%evp 0,57,19,38,40,41,41,32,28,27,40,32,87,19,42,7,42,33,56,34,46,30,24,20,57,73,79,71,75,88,73,68,104,48,35,46,28,51,89,51,90,84,144,157,158,158,152,162,162,162,189,165,198,205,212,153,172,132,132,140]} 1. e4 c5 2. Nf3 e6 3. d4 cxd4 4. Nxd4 Nf6 5. Nc3 d6 6. g4 h6 7. Rg1 Be7 8. Be3 Nc6 9. Qe2 a6 10. h4 Nd7 11. O-O-O Qc7 12. g5 hxg5 13. hxg5 g6 14. f4 b5 15. Nxc6 Qxc6 16. Bd4 Rh5 17. Bg2 Bb7 18. Bf3 Rh7 19. Rge1 O-O-O 20. Nd5 Bxg5 21. fxg5 exd5 22. exd5 Qc4 23. Qxc4+ bxc4 24. Re7 Kb8 25. Rh1 Rxh1+ 26. Bxh1 Ne5 27. Be4 Kc8 28. Bb6 Rh8 29. Bc7 Rh4 30. Bxd6 Rxe4 31. Rc7+ Kd8 32. Rxb7 Nf3 33. Bb4 Nxg5 34. Bd2 Rg4 35. Bxg5+ Rxg5 {35...Rg1+ (illegal) 36. Kd2 Rxg5 was played} 36. Kd2 Z0 37. Rxf7 Rxd5+ 38. Kc3 Rd6 39. Rf4 Ke7 40. Kxc4 Rc6+ 41. Kd3 Ke6 42. c4 g5 43. Rd4 Kf5 44. Ke3 Rh6 45. Rd5+ Kg4 46. c5 Rh2 47. Rd2 Rh7 48. c6 Rc7 49. Rc2 Kf5 50. Kd4 g4 51. Kc5 g3 52. Kb6 Rc8 53. Kb7 g2 54. Rxg2 1-0

[Event "Netanya Open 2019"]
[Site "Netanya"]
[Date "2019.06.23"]
[Round "1.46"]
[White "Kushnir, Arie"]
[Black "Prraneeth Vuppala"]
[Result "0-1"]
[WhiteElo "1662"]
[BlackElo "2297"]
[PlyCount "72"]
[EventDate "2019.06.23"]
[EventType "swiss"]
[EventRounds "9"]
[EventCountry "ISR"]
[TimeControl "40/5400+30:1800+30"]

1. e4 c5 2. Nf3 d6 3. Bb5+ Nd7 4. O-O a6 5. Bd3 Ngf6 6. c3 b5 7. Bc2 Bb7 8. Re1 Qc7 9. d4 cxd4 10. cxd4 Rc8 11. Bb3 Nxe4 12. Nbd2 Nxd2 13. Bxd2 h6 14. Rc1 Qb8 15. Rxc8+ Qxc8 16. Qe2 Nf6 17. Bb4 e6 18. Nh4 g5 19. Ng6 Rg8 20. Nxf8 Rxf8 21. Bxd6 Qc6 22. Qf3 Qxd6 23. Qxb7 Nd7 24. Rc1 Ke7 25. d5 Rb8 26. Qc6 Qxc6 27. Rxc6 exd5 28. Bxd5 Rb6 29. Rxb6 Nxb6 30. Be4 Na4 31. b4 Nc3 32. Bb7 Kd6 33. a3 Nb1 34. a4 bxa4 35. Bxa6 Nd2 36. b5 a3 0-1

[Event "Netanya Open 2019"]
[Site "Netanya"]
[Date "2019.06.23"]
[Round "1.47"]
[White "Tifferet, Shaked"]
[Black "Neeman, Gal"]
[Result "1-0"]
[WhiteElo "2236"]
[BlackElo "1661"]
[PlyCount "97"]
[EventDate "2019.06.23"]
[EventType "swiss"]
[EventRounds "9"]
[EventCountry "ISR"]
[TimeControl "40/5400+30:1800+30"]

1. e4 c5 2. Nf3 e6 3. b3 Nc6 4. Bb2 d5 5. Bb5 Bd7 6. exd5 exd5 7. O-O d4 8. c3 Be7 9. Re1 Nf6 10. Qe2 a6 11. Bxc6 Bxc6 12. cxd4 Nd5 13. Nc3 Nf4 14. Qe3 Nxg2 15. Kxg2 cxd4 16. Qf4 dxc3 17. Ba3 O-O 18. Bxe7 Qxd2 19. Qxd2 cxd2 20. Re3 Rfc8 21. Rd1 Bxf3+ 22. Kxf3 Rc2 23. Rd3 Rxa2 24. R1xd2 Rxd2 25. Rxd2 f6 26. Rd8+ Rxd8 27. Bxd8 Kf7 28. Ke4 Ke6 29. Bc7 Kd7 30. Ba5 Kc6 31. Bb4 b5 32. Kd4 g6 33. Be7 f5 34. Bd8 Kd6 35. Ba5 g5 36. Bb4+ Ke6 37. Bd2 f4 38. Ke4 h6 39. Ba5 Kf6 40. Bc3+ Kg6 41. f3 Kf7 42. Kf5 Kg8 43. b4 Kf7 44. h3 Ke7 45. Bg7 Kf7 46. Bxh6 a5 47. bxa5 b4 48. Bxg5 b3 49. Bf6 1-0

[Event "Netanya Open 2019"]
[Site "Netanya"]
[Date "2019.06.23"]
[Round "1.48"]
[White "Kadosh, Lior"]
[Black "Cohen Revivo, Shoham"]
[Result "0-1"]
[WhiteElo "1649"]
[BlackElo "2225"]
[PlyCount "80"]
[EventDate "2019.06.23"]
[EventType "swiss"]
[EventRounds "9"]
[EventCountry "ISR"]
[TimeControl "40/5400+30:1800+30"]

1. e4 e6 2. d4 d5 3. Nc3 Nf6 4. exd5 exd5 5. Bg5 c6 6. Bd3 Bd6 7. Nf3 O-O 8. O-O Bg4 9. Re1 Nbd7 10. Re3 Qc7 11. h3 Bh5 12. Ne2 Rfe8 13. Nh4 Ne4 14. Bxe4 dxe4 15. Nf5 Bh2+ 16. Kh1 f6 17. Bh4 Bf4 18. Bg3 Bxg3 19. Rxg3 Bg6 20. Nh4 Nf8 21. Qd2 Rad8 22. Nf4 Qd6 23. Rd1 Kf7 24. c4 c5 25. d5 Re5 26. Qa5 b6 27. Qxa7+ Re7 28. Qa6 Qxf4 29. Nxg6 hxg6 30. Qxb6 Qxf2 31. Rxg6 Rdd7 32. Rg4 e3 33. Qa5 e2 34. Re1 f5 35. Rg5 Qf1+ 36. Kh2 Qf4+ 37. Kh1 Qxg5 38. Qxc5 Qe3 39. Qa5 Ra7 40. Qb4 Reb7 0-1

[Event "Netanya Open 2019"]
[Site "Netanya"]
[Date "2019.06.23"]
[Round "1.49"]
[White "Aleksikov, Oleksandr"]
[Black "Tal-Shahar, Liam"]
[Result "1-0"]
[WhiteElo "2234"]
[BlackElo "1623"]
[PlyCount "125"]
[EventDate "2019.06.23"]
[EventType "swiss"]
[EventRounds "9"]
[EventCountry "ISR"]
[TimeControl "40/5400+30:1800+30"]

1. e4 e5 2. Nf3 Nc6 3. Bb5 Bc5 4. c3 f5 5. exf5 e4 6. d4 exf3 7. dxc5 Qe7+ 8. Be3 fxg2 9. Rg1 Nf6 10. Nd2 O-O 11. Rxg2 d6 12. cxd6 cxd6 13. Bd3 Ne5 14. Nf3 Nd5 15. Nxe5 Nxe3 16. fxe3 Qxe5 17. Qb3+ Kh8 18. Kd2 b6 19. Rf1 Bb7 20. Rg3 Rae8 21. Qa4 a5 22. Qd4 Be4 23. Bxe4 Qxd4+ 24. exd4 Rxe4 25. Re3 Rh4 26. Rf2 Kg8 27. Re6 Rf6 28. Rxf6 gxf6 29. a4 Kf7 30. Ke3 d5 31. Kf3 Rh5 32. Kf4 Rh4+ 33. Kg3 Re4 34. Kf3 Re1 35. Re2 Rb1 36. h3 Rf1+ 37. Kg4 h5+ 38. Kxh5 Rxf5+ 39. Kg4 Rg5+ 40. Kf4 Rh5 41. Rh2 Rh4+ 42. Ke3 f5 43. Kf3 f4 44. Re2 Kf6 45. Re5 Rxh3+ 46. Kxf4 Rh2 47. Rxd5 Rxb2 48. Ke4 Ra2 49. Rd6+ Ke7 50. Rxb6 Rxa4 51. Kd5 Ra3 52. c4 Rh3 53. c5 a4 54. Ra6 a3 55. Ra7+ Kd8 56. Kc6 Rh6+ 57. Kb5 Rh3 58. d5 Kc8 59. Kc6 Kb8 60. Ra4 Rb3 61. d6 Rc3 62. d7 Rd3 63. Rxa3 1-0

[Event "Netanya Open 2019"]
[Site "Netanya"]
[Date "2019.06.23"]
[Round "1.50"]
[White "Sobel, Ido"]
[Black "Aroesti, Roee"]
[Result "0-1"]
[WhiteElo "1606"]
[BlackElo "2230"]
[PlyCount "82"]
[EventDate "2019.06.23"]
[EventType "swiss"]
[EventRounds "9"]
[EventCountry "ISR"]
[TimeControl "40/5400+30:1800+30"]

1. e4 c5 2. Nc3 Nc6 3. Bc4 g6 4. d3 Bg7 5. f4 d6 6. Nf3 Nf6 7. O-O O-O 8. Qe1 Nd4 9. Nxd4 cxd4 10. Ne2 d5 11. exd5 Nxd5 12. Ng3 Ne3 13. Bxe3 dxe3 14. c3 b5 15. Bb3 a5 16. a3 Qb6 17. d4 Be6 18. Bxe6 Qxe6 19. Rf3 Qb3 20. Qe2 b4 21. Rxe3 bxc3 22. bxc3 Rab8 23. Ne4 Qb2 24. Ra2 Qb1+ 25. Kf2 Qh1 26. Kg3 Rb1 27. Nd2 Rg1 28. Rxe7 Rc1 29. Re3 Rc8 30. Ne4 Qg1 31. Nc5 h5 32. Rd2 Bh6 33. Rdd3 h4+ 34. Kh3 Bxf4 35. Re8+ Kh7 36. Qe7 Qxh2+ 37. Kg4 Qxg2+ 38. Kxf4 Rf1+ 39. Ke3 Rxe8 40. Qxe8 Re1+ 41. Kf4 Rxe8 0-1

[Event "Netanya Open 2019"]
[Site "Netanya"]
[Date "2019.06.23"]
[Round "1.51"]
[White "Axelrod, Arie"]
[Black "Scheinfeild, Michael"]
[Result "1/2-1/2"]
[WhiteElo "2224"]
[BlackElo "1582"]
[PlyCount "105"]
[EventDate "2019.06.23"]
[EventType "swiss"]
[EventRounds "9"]
[EventCountry "ISR"]
[TimeControl "40/5400+30:1800+30"]

1. e4 c5 2. Nf3 Nc6 3. d4 Nxd4 4. Nxd4 cxd4 5. Qxd4 e6 6. Nc3 a6 7. Bf4 Ne7 8. O-O-O Nc6 9. Qe3 Be7 10. Qg3 O-O 11. h4 Qa5 12. h5 f5 13. h6 g6 14. Kb1 fxe4 15. Bd6 Bxd6 16. Qxd6 Qe5 17. g3 Qxd6 18. Rxd6 Rxf2 19. Nxe4 Rf8 20. Bg2 Ne7 21. g4 Nd5 22. g5 Rf5 23. Bh3 Rf7 24. c4 Ne3 25. Nf6+ Rxf6 26. gxf6 Nxc4 27. Bxe6+ dxe6 28. Rd8+ Kf7 29. Rh8 Kxf6 30. Rxh7 e5 31. Rc7 Bf5+ 32. Kc1 Ne3 33. Kd2 Ng4 34. h7 Rd8+ 35. Kc3 Rh8 36. Rxb7 e4 37. Rb6+ Ke5 38. Rxa6 e3 39. Ra7 g5 40. b4 Nf6 41. Re7+ Kd6 42. Rg7 Bxh7 43. Kd4 Re8 44. Rxg5 Re4+ 45. Kc3 Nd5+ 46. Kb3 Rxb4+ 47. Ka3 Rb7 48. Rd1 Be4 49. Rg3 Kc5 50. Rxd5+ Bxd5 51. Rxe3 Ra7+ 52. Kb2 Rxa2+ 53. Kc3 1/2-1/2